fUSD/lending_fUSD_20260605
["ID","MTS","AMOUNT","RATE_DAILY","PERIOD"]
[424199073,1780648242000,-275.112495,0.00013335,2]
[424199080,1780648242000,-150.0,0.00013488,2]
[424199066,1780648242000,-151.0,0.00013142,2]
[424199081,1780648242000,-150.0,0.00013488,2]
[424199068,1780648242000,-150.0,0.00013151,2]
[424199057,1780648242000,-151.0,0.00013142,2]
[424199063,1780648242000,-983.012832,0.00013142,2]
[424199065,1780648242000,-151.0,0.00013142,2]
[424199059,1780648242000,-250.0,0.00013142,2]
[424199070,1780648242000,-150.0,0.00013171,2]
[424199062,1780648242000,-983.012832,0.00013142,2]
[424199061,1780648242000,-983.012832,0.00013142,2]
[424199055,1780648242000,-500.0,0.00013142,2]
[424199054,1780648242000,-500.0,0.00013142,2]
[424199053,1780648242000,-500.0,0.00013142,2]
[424199052,1780648242000,-500.0,0.00013142,2]
[424199058,1780648242000,-151.0,0.00013142,2]
[424199056,1780648242000,-311.562506,0.00013142,2]
[424199051,1780648242000,-500.0,0.00013142,2]
[424199082,1780648242000,-150.0,0.00013488,2]
[424199067,1780648242000,-2500000.0,0.00013142,2]
[424199079,1780648242000,-150.0,0.00013488,2]
[424199090,1780648242000,-203.55691112,0.00013503,2]
[424199083,1780648242000,-150.0,0.00013488,2]
[424199115,1780648242000,-203.55691112,0.00013669,2]
[424199084,1780648242000,-150.0,0.00013488,2]
[424199114,1780648242000,-150.0,0.00013668,2]
[424199110,1780648242000,-203.55691112,0.00013639,2]
[424199113,1780648242000,-150.0,0.00013668,2]
[424199107,1780648242000,-203.55691112,0.00013609,2]
[424199108,1780648242000,-150.0,0.00013609,2]
[424199112,1780648242000,-203.55691112,0.00013654,2]
[424199109,1780648242000,-203.55691112,0.00013624,2]
[424199106,1780648242000,-150.0,0.00013608,2]
[424199105,1780648242000,-150.0,0.00013608,2]
[424199099,1780648242000,-203.55691112,0.00013548,2]
[424199101,1780648242000,-150.0,0.00013569,2]
[424199103,1780648242000,-150.0,0.00013588,2]
[424199100,1780648242000,-203.55691112,0.00013563,2]
[424199111,1780648242000,-150.0,0.0001365,2]
[424199102,1780648242000,-203.55691112,0.00013578,2]
[424199104,1780648242000,-203.55691112,0.00013594,2]
[424199088,1780648242000,-150.0,0.00013488,2]
[424199086,1780648242000,-150.0,0.00013488,2]
[424199087,1780648242000,-203.7220427,0.00013488,2]
[424199092,1780648242000,-150.0,0.00013528,2]
[424199089,1780648242000,-164.84,0.00013489,2]
[424199091,1780648242000,-203.55691112,0.00013518,2]
[424199094,1780648242000,-1584.0,0.00013533,5]
[424199096,1780648242000,-150.0,0.00013548,2]
[424199093,1780648242000,-203.55691112,0.00013533,2]
[424199085,1780648242000,-203.55691112,0.00013488,2]
[424199097,1780648242000,-426.32474976,0.00013548,2]
[424199095,1780648242000,-150.0,0.00013548,2]
[424199098,1780648242000,-186.18115721,0.00013548,2]
[424199145,1780648243000,-500.0,0.00013698,2]
[424199162,1780648243000,-500.0,0.00013698,2]
[424199149,1780648243000,-249.3098753,0.00013698,2]
[424199148,1780648243000,-500.0,0.00013698,2]
[424199147,1780648243000,-500.0,0.00013698,2]
[424199165,1780648243000,-500.0,0.00013698,2]
[424199154,1780648243000,-500.0,0.00013698,2]
[424199156,1780648243000,-500.0,0.00013698,2]
[424199159,1780648243000,-500.0,0.00013698,2]
[424199157,1780648243000,-500.0,0.00013698,2]
[424199158,1780648243000,-500.0,0.00013698,2]
[424199173,1780648243000,-500.0,0.00013698,2]
[424199168,1780648243000,-500.0,0.00013698,2]
[424199161,1780648243000,-500.0,0.00013698,2]
[424199160,1780648243000,-500.0,0.00013698,2]
[424199163,1780648243000,-500.0,0.00013698,2]
[424199167,1780648243000,-500.0,0.00013698,2]
[424199176,1780648243000,-500.0,0.00013698,2]
[424199169,1780648243000,-500.0,0.00013698,2]
[424199166,1780648243000,-500.0,0.00013698,2]
[424199170,1780648243000,-500.0,0.00013698,2]
[424199175,1780648243000,-500.0,0.00013698,2]
[424199171,1780648243000,-540.02127567,0.00013698,2]
[424199172,1780648243000,-500.0,0.00013698,2]
[424199146,1780648243000,-500.0,0.00013698,2]
[424199164,1780648243000,-500.0,0.00013698,2]
[424199143,1780648243000,-176.18769994,0.00013698,2]
[424199135,1780648243000,-500.0,0.00013698,2]
[424199152,1780648243000,-500.0,0.00013698,2]
[424199174,1780648243000,-500.0,0.00013698,2]
[424199116,1780648243000,-203.55691112,0.00013684,2]
[424199117,1780648243000,-150.0,0.00013687,2]
[424199118,1780648243000,-150.0,0.0001369,2]
[424199119,1780648243000,-500.0,0.00013698,2]
[424199121,1780648243000,-500.0,0.00013698,2]
[424199125,1780648243000,-500.0,0.00013698,2]
[424199122,1780648243000,-500.0,0.00013698,2]
[424199124,1780648243000,-500.0,0.00013698,2]
[424199120,1780648243000,-500.0,0.00013698,2]
[424199123,1780648243000,-500.0,0.00013698,2]
[424199126,1780648243000,-500.0,0.00013698,2]
[424199144,1780648243000,-500.0,0.00013698,2]
[424199128,1780648243000,-500.0,0.00013698,2]
[424199131,1780648243000,-500.0,0.00013698,2]
[424199129,1780648243000,-500.0,0.00013698,2]
[424199134,1780648243000,-500.0,0.00013698,2]
[424199136,1780648243000,-500.0,0.00013698,2]
[424199127,1780648243000,-500.0,0.00013698,2]
[424199138,1780648243000,-500.0,0.00013698,2]
[424199141,1780648243000,-500.0,0.00013698,2]
[424199140,1780648243000,-500.0,0.00013698,2]
[424199150,1780648243000,-500.0,0.00013698,2]
[424199142,1780648243000,-500.0,0.00013698,2]
[424199153,1780648243000,-500.0,0.00013698,2]
[424199151,1780648243000,-500.0,0.00013698,2]
[424199130,1780648243000,-500.0,0.00013698,2]
[424199177,1780648243000,-500.0,0.00013698,2]
[424199155,1780648243000,-500.0,0.00013698,2]
[424199180,1780648243000,-500.0,0.00013698,2]
[424199208,1780648243000,-500.0,0.00013698,2]
[424199209,1780648243000,-500.0,0.00013698,2]
[424199206,1780648243000,-500.0,0.00013698,2]
[424199214,1780648243000,-500.0,0.00013698,2]
[424199216,1780648243000,-500.0,0.00013698,2]
[424199215,1780648243000,-500.0,0.00013698,2]
[424199213,1780648243000,-500.0,0.00013698,2]
[424199219,1780648243000,-500.0,0.00013698,2]
[424199217,1780648243000,-500.0,0.00013698,2]
[424199221,1780648243000,-500.0,0.00013698,2]
[424199222,1780648243000,-500.0,0.00013698,2]
[424199218,1780648243000,-500.0,0.00013698,2]
[424199204,1780648243000,-500.0,0.00013698,2]
[424199220,1780648243000,-500.0,0.00013698,2]
[424199223,1780648243000,-500.0,0.00013698,2]
[424199233,1780648243000,-902.09515281,0.00013699,2]
[424199232,1780648243000,-902.09515281,0.00013699,2]
[424199225,1780648243000,-451.55425644,0.00013698,2]
[424199234,1780648243000,-902.09515281,0.00013699,2]
[424199224,1780648243000,-500.0,0.00013698,2]
[424199226,1780648243000,-500.0,0.00013698,2]
[424199228,1780648243000,-300.0,0.00013698,2]
[424199229,1780648243000,-151.0,0.00013699,2]
[424199230,1780648243000,-166.66,0.00013699,2]
[424199227,1780648243000,-500.0,0.00013698,2]
[424199235,1780648243000,-902.09515281,0.00013699,2]
[424199231,1780648243000,-200.0,0.00013699,2]
[424199205,1780648243000,-500.0,0.00013698,2]
[424199178,1780648243000,-336.96748853,0.00013698,2]
[424199203,1780648243000,-500.0,0.00013698,2]
[424199207,1780648243000,-500.0,0.00013698,2]
[424199186,1780648243000,-500.0,0.00013698,2]
[424199179,1780648243000,-500.0,0.00013698,2]
[424199185,1780648243000,-500.0,0.00013698,2]
[424199184,1780648243000,-500.0,0.00013698,2]
[424199183,1780648243000,-500.0,0.00013698,2]
[424199182,1780648243000,-500.0,0.00013698,2]
[424199181,1780648243000,-500.0,0.00013698,2]
[424199188,1780648243000,-500.0,0.00013698,2]
[424199190,1780648243000,-361.94894226,0.00013698,2]
[424199191,1780648243000,-500.0,0.00013698,2]
[424199189,1780648243000,-500.0,0.00013698,2]
[424199195,1780648243000,-500.0,0.00013698,2]
[424199187,1780648243000,-500.0,0.00013698,2]
[424199196,1780648243000,-550.90519724,0.00013698,2]
[424199193,1780648243000,-500.0,0.00013698,2]
[424199201,1780648243000,-500.0,0.00013698,2]
[424199199,1780648243000,-500.0,0.00013698,2]
[424199210,1780648243000,-500.0,0.00013698,2]
[424199200,1780648243000,-500.0,0.00013698,2]
[424199212,1780648243000,-500.0,0.00013698,2]
[424199194,1780648243000,-241.38210982,0.00013698,2]
[424199202,1780648243000,-500.0,0.00013698,2]
[424199198,1780648243000,-500.0,0.00013698,2]
[424199197,1780648243000,-500.0,0.00013698,2]
[424199192,1780648243000,-500.0,0.00013698,2]
[424199211,1780648243000,-500.0,0.00013698,2]
[424199273,1780648244000,-902.09515281,0.00013699,2]
[424199279,1780648244000,-902.09515281,0.00013699,2]
[424199281,1780648244000,-203.55691112,0.000137,2]
[424199275,1780648244000,-902.09515281,0.00013699,2]
[424199268,1780648244000,-902.09515281,0.00013699,2]
[424199272,1780648244000,-902.09515281,0.00013699,2]
[424199271,1780648244000,-902.09515281,0.00013699,2]
[424199270,1780648244000,-902.09515281,0.00013699,2]
[424199269,1780648244000,-902.09515281,0.00013699,2]
[424199276,1780648244000,-902.09515281,0.00013699,2]
[424199274,1780648244000,-902.09515281,0.00013699,2]
[424199277,1780648244000,-902.09515281,0.00013699,2]
[424199291,1780648244000,-203.55691112,0.00013775,2]
[424199278,1780648244000,-902.09515281,0.00013699,2]
[424199282,1780648244000,-166.66,0.00013701,2]
[424199284,1780648244000,-150.0,0.00013727,2]
[424199285,1780648244000,-150.0,0.00013727,2]
[424199287,1780648244000,-150.0,0.00013731,2]
[424199286,1780648244000,-203.55691112,0.0001373,2]
[424199283,1780648244000,-203.55691112,0.00013715,2]
[424199290,1780648244000,-150.0,0.00013771,2]
[424199292,1780648244000,-150.0,0.00013787,2]
[424199289,1780648244000,-203.55691112,0.0001376,2]
[424199288,1780648244000,-203.55691112,0.00013745,2]
[424199266,1780648244000,-902.09515281,0.00013699,2]
[424199280,1780648244000,-902.09515281,0.00013699,2]
[424199263,1780648244000,-902.09515281,0.00013699,2]
[424199246,1780648244000,-902.09515281,0.00013699,2]
[424199267,1780648244000,-902.09515281,0.00013699,2]
[424199294,1780648244000,-150.0,0.00013787,2]
[424199237,1780648244000,-902.09515281,0.00013699,2]
[424199245,1780648244000,-902.09515281,0.00013699,2]
[424199238,1780648244000,-902.09515281,0.00013699,2]
[424199240,1780648244000,-902.09515281,0.00013699,2]
[424199242,1780648244000,-902.09515281,0.00013699,2]
[424199244,1780648244000,-902.09515281,0.00013699,2]
[424199243,1780648244000,-902.09515281,0.00013699,2]
[424199239,1780648244000,-902.09515281,0.00013699,2]
[424199241,1780648244000,-902.09515281,0.00013699,2]
[424199255,1780648244000,-902.09515281,0.00013699,2]
[424199252,1780648244000,-902.09515281,0.00013699,2]
[424199265,1780648244000,-902.09515281,0.00013699,2]
[424199254,1780648244000,-902.09515281,0.00013699,2]
[424199256,1780648244000,-902.09515281,0.00013699,2]
[424199248,1780648244000,-902.09515281,0.00013699,2]
[424199247,1780648244000,-902.09515281,0.00013699,2]
[424199249,1780648244000,-902.09515281,0.00013699,2]
[424199250,1780648244000,-902.09515281,0.00013699,2]
[424199251,1780648244000,-902.09515281,0.00013699,2]
[424199258,1780648244000,-902.09515281,0.00013699,2]
[424199260,1780648244000,-902.09515281,0.00013699,2]
[424199262,1780648244000,-902.09515281,0.00013699,2]
[424199264,1780648244000,-902.09515281,0.00013699,2]
[424199261,1780648244000,-902.09515281,0.00013699,2]
[424199259,1780648244000,-902.09515281,0.00013699,2]
[424199257,1780648244000,-902.09515281,0.00013699,2]
[424199236,1780648244000,-902.09515281,0.00013699,2]
[424199302,1780648244000,-166.66,0.00013836,2]
[424199293,1780648244000,-150.0,0.00013787,2]
[424199323,1780648244000,-166.66,0.00013973,2]
[424199320,1780648244000,-150.0,0.00013967,2]
[424199331,1780648244000,-203.55691112,0.00014002,2]
[424199329,1780648244000,-250.0,0.00014,2]
[424199333,1780648244000,-203.55691112,0.00014017,2]
[424199330,1780648244000,-9025.37470176,0.00014,2]
[424199332,1780648244000,-150.0,0.00014014,2]
[424199334,1780648244000,-150.0,0.00014027,2]
[424199335,1780648244000,-150.0,0.00014027,2]
[424199336,1780648244000,-203.55691112,0.00014033,2]
[424199338,1780648244000,-150.0,0.00014055,2]
[424199337,1780648244000,-203.55691112,0.00014048,2]
[424199351,1780648244000,-166.66,0.0001411,2]
[424199340,1780648244000,-203.55691112,0.00014078,2]
[424199341,1780648244000,-445.0,0.00014083,2]
[424199344,1780648244000,-150.0,0.00014087,2]
[424199342,1780648244000,-455.0,0.00014083,2]
[424199343,1780648244000,-150.0,0.00014087,2]
[424199346,1780648244000,-150.0,0.00014087,2]
[424199348,1780648244000,-150.0,0.00014095,2]
[424199347,1780648244000,-203.55691112,0.00014093,2]
[424199350,1780648244000,-203.55691112,0.00014108,2]
[424199349,1780648244000,-166.66,0.00014101,2]
[424199345,1780648244000,-150.0,0.00014087,2]
[424199303,1780648244000,-203.55691112,0.00013836,2]
[424199322,1780648244000,-203.55691112,0.00013972,2]
[424199318,1780648244000,-203.55691112,0.00013942,2]
[424199339,1780648244000,-203.55691112,0.00014063,2]
[424199327,1780648244000,-150.0,0.00013987,2]
[424199321,1780648244000,-150.0,0.00013967,2]
[424199299,1780648244000,-4535.98,0.00013809,2]
[424199296,1780648244000,-203.55691112,0.0001379,2]
[424199300,1780648244000,-150.0,0.00013812,2]
[424199301,1780648244000,-203.55691112,0.00013821,2]
[424199298,1780648244000,-203.55691112,0.00013806,2]
[424199297,1780648244000,-151.0,0.00013792,2]
[424199304,1780648244000,-150.0,0.00013847,2]
[424199307,1780648244000,-150.0,0.00013852,2]
[424199313,1780648244000,-150.0,0.00013907,2]
[424199308,1780648244000,-203.55691112,0.00013866,2]
[424199309,1780648244000,-203.55691112,0.00013881,2]
[424199305,1780648244000,-150.0,0.00013847,2]
[424199295,1780648244000,-150.0,0.00013787,2]
[424199310,1780648244000,-150.0,0.00013887,2]
[424199314,1780648244000,-150.0,0.00013907,2]
[424199328,1780648244000,-203.55691112,0.00013987,2]
[424199325,1780648244000,-323.11658765,0.00013976,2]
[424199316,1780648244000,-203.55691112,0.00013927,2]
[424199326,1780648244000,-150.0,0.00013987,2]
[424199324,1780648244000,-150.0,0.00013974,2]
[424199319,1780648244000,-203.55691112,0.00013957,2]
[424199315,1780648244000,-203.55691112,0.00013912,2]
[424199312,1780648244000,-203.55691112,0.00013896,2]
[424199311,1780648244000,-150.0,0.00013893,2]
[424199306,1780648244000,-203.55691112,0.00013851,2]
[424199317,1780648244000,-150.0,0.00013933,2]
[424199397,1780648245000,-166.66,0.00014384,2]
[424199396,1780648245000,-203.55691112,0.00014381,2]
[424199395,1780648245000,-150.0,0.00014379,2]
[424199384,1780648245000,-2000.0,0.00014326,2]
[424199394,1780648245000,-203.55691112,0.00014366,2]
[424199387,1780648245000,-203.55691112,0.00014335,2]
[424199383,1780648245000,-203.55691112,0.0001432,2]
[424199381,1780648245000,-150.0,0.00014298,2]
[424199404,1780648245000,-203.55691112,0.00014411,2]
[424199386,1780648245000,-150.0,0.00014327,2]
[424199393,1780648245000,-203.55691112,0.00014351,2]
[424199388,1780648245000,-150.0,0.00014338,2]
[424199408,1780648245000,-150.0,0.00014447,2]
[424199391,1780648245000,-500.0,0.00014347,2]
[424199392,1780648245000,-500.0,0.00014347,2]
[424199390,1780648245000,-500.0,0.00014347,2]
[424199399,1780648245000,-150.0,0.00014387,2]
[424199400,1780648245000,-150.0,0.00014387,2]
[424199405,1780648245000,-150.0,0.00014419,2]
[424199407,1780648245000,-203.55691112,0.00014441,2]
[424199398,1780648245000,-150.0,0.00014387,2]
[424199401,1780648245000,-150.0,0.00014387,2]
[424199406,1780648245000,-203.55691112,0.00014426,2]
[424199402,1780648245000,-203.55691112,0.00014396,2]
[424199382,1780648245000,-203.55691112,0.00014305,2]
[424199389,1780648245000,-500.0,0.00014347,2]
[424199385,1780648245000,-150.0,0.00014327,2]
[424199352,1780648245000,-203.55691112,0.00014123,2]
[424199376,1780648245000,-150.0,0.00014267,2]
[424199354,1780648245000,-203.55691112,0.00014139,2]
[424199357,1780648245000,-203.55691112,0.00014154,2]
[424199356,1780648245000,-150.0,0.00014147,2]
[424199355,1780648245000,-150.0,0.00014147,2]
[424199358,1780648245000,-426.32474976,0.00014157,2]
[424199362,1780648245000,-275.13,0.00014184,2]
[424199361,1780648245000,-150.0,0.00014176,2]
[424199360,1780648245000,-4589.85130044,0.00014176,2]
[424199359,1780648245000,-203.55691112,0.00014169,2]
[424199353,1780648245000,-150.0,0.00014136,2]
[424199364,1780648245000,-150.0,0.00014187,2]
[424199373,1780648245000,-166.66,0.00014247,2]
[424199380,1780648245000,-203.55691112,0.0001429,2]
[424199363,1780648245000,-203.55691112,0.00014184,2]
[424199374,1780648245000,-150.0,0.00014257,2]
[424199372,1780648245000,-203.55691112,0.00014245,2]
[424199366,1780648245000,-150.0,0.00014207,2]
[424199371,1780648245000,-150.0,0.00014237,2]
[424199367,1780648245000,-150.0,0.00014207,2]
[424199368,1780648245000,-203.55691112,0.00014214,2]
[424199369,1780648245000,-150.0,0.00014217,2]
[424199370,1780648245000,-203.55691112,0.00014229,2]
[424199375,1780648245000,-203.55691112,0.0001426,2]
[424199378,1780648245000,-203.55691112,0.00014275,2]
[424199377,1780648245000,-150.0,0.00014267,2]
[424199379,1780648245000,-150.0,0.00014287,2]
[424199365,1780648245000,-203.55691112,0.00014199,2]
[424199403,1780648245000,-2000.0,0.000144,2]
[424199436,1780648245000,-150.0,0.00014587,2]
[424199419,1780648245000,-203.55691112,0.00014502,2]
[424199441,1780648245000,-344.0,0.00014618,2]
[424199438,1780648245000,-530.74657936,0.00014599,2]
[424199444,1780648245000,-150.0,0.00014627,2]
[424199446,1780648245000,-203.55691112,0.00014638,2]
[424199458,1780648245000,-150.0,0.00014687,2]
[424199445,1780648245000,-150.0,0.00014627,2]
[424199455,1780648245000,-150.0,0.00014687,2]
[424199456,1780648245000,-150.0,0.00014687,2]
[424199448,1780648245000,-10000.0,0.00014649,2]
[424199450,1780648245000,-203.55691112,0.00014653,2]
[424199457,1780648245000,-150.0,0.00014687,2]
[424199451,1780648245000,-150.0,0.00014662,2]
[424199453,1780648245000,-203.55691112,0.00014684,2]
[424199452,1780648245000,-203.55691112,0.00014668,2]
[424199454,1780648245000,-390.0,0.00014686,2]
[424199460,1780648245000,-14251.22910069,0.000147,2]
[424199459,1780648245000,-203.55691112,0.00014699,2]
[424199463,1780648245000,-390.0,0.00014712,2]
[424199466,1780648245000,-200.0,0.00014722,2]
[424199461,1780648245000,-150.0,0.00014703,2]
[424199468,1780648245000,-203.55691112,0.00014729,2]
[424199465,1780648245000,-164.84,0.00014716,2]
[424199462,1780648245000,-216.0,0.00014704,2]
[424199464,1780648245000,-203.55691112,0.00014714,2]
[424199467,1780648245000,-390.0,0.00014723,2]
[424199437,1780648245000,-203.55691112,0.00014593,2]
[424199440,1780648245000,-203.55691112,0.00014608,2]
[424199409,1780648245000,-150.0,0.00014447,2]
[424199439,1780648245000,-2000.0,0.000146,2]
[424199410,1780648245000,-203.55691112,0.00014456,2]
[424199415,1780648245000,-203.55691112,0.00014487,2]
[424199416,1780648245000,-200.0,0.00014497,2]
[424199420,1780648245000,-150.0,0.00014507,2]
[424199418,1780648245000,-150.0,0.000145,2]
[424199412,1780648245000,-203.55691112,0.00014472,2]
[424199411,1780648245000,-150.0,0.0001446,2]
[424199414,1780648245000,-150.0,0.00014487,2]
[424199417,1780648245000,-2000.0,0.000145,2]
[424199413,1780648245000,-150.0,0.00014487,2]
[424199421,1780648245000,-150.0,0.00014507,2]
[424199422,1780648245000,-203.55691112,0.00014517,2]
[424199430,1780648245000,-150.0,0.00014567,2]
[424199442,1780648245000,-150.0,0.00014622,2]
[424199423,1780648245000,-203.55691112,0.00014532,2]
[424199429,1780648245000,-150.0,0.00014567,2]
[424199433,1780648245000,-203.55691112,0.00014578,2]
[424199434,1780648245000,-150.0,0.00014581,2]
[424199435,1780648245000,-15000.0,0.00014586,2]
[424199432,1780648245000,-6111.0,0.00014577,2]
[424199443,1780648245000,-203.55691112,0.00014623,2]
[424199431,1780648245000,-1911.5251706,0.00014569,2]
[424199425,1780648245000,-1500.0,0.00014532,2]
[424199428,1780648245000,-203.55691112,0.00014562,2]
[424199424,1780648245000,-1030.0,0.00014532,2]
[424199426,1780648245000,-150.0,0.00014541,2]
[424199427,1780648245000,-203.55691112,0.00014547,2]
[424199501,1780648246000,-203.55691112,0.0001485,2]
[424199500,1780648246000,-1568.24155,0.0001485,2]
[424199499,1780648246000,-1568.24155,0.0001485,2]
[424199497,1780648246000,-203.55691112,0.00014835,2]
[424199496,1780648246000,-150.0,0.00014824,2]
[424199498,1780648246000,-390.0,0.00014848,2]
[424199504,1780648246000,-150.0,0.00014865,2]
[424199506,1780648246000,-150.0,0.00014866,2]
[424199505,1780648246000,-203.55691112,0.00014865,2]
[424199502,1780648246000,-390.0,0.00014853,2]
[424199507,1780648246000,-150.0,0.00014866,2]
[424199508,1780648246000,-200.0,0.00014879,2]
[424199518,1780648246000,-250.0319068,0.000149,2]
[424199516,1780648246000,-25000.0,0.000149,3]
[424199517,1780648246000,-4589.85130044,0.000149,2]
[424199489,1780648246000,-390.0,0.00014794,2]
[424199509,1780648246000,-203.55691112,0.0001488,2]
[424199512,1780648246000,-203.55691112,0.00014895,2]
[424199510,1780648246000,-524.78640974,0.00014883,2]
[424199511,1780648246000,-150.0,0.00014886,2]
[424199514,1780648246000,-3238.04126973,0.000149,3]
[424199503,1780648246000,-1568.24156,0.0001486,2]
[424199490,1780648246000,-2000.0,0.000148,2]
[424199494,1780648246000,-150.0,0.00014806,2]
[424199492,1780648246000,-203.55691112,0.00014805,2]
[424199470,1780648246000,-180.913,0.00014729,2]
[424199469,1780648246000,-3576.219,0.00014729,2]
[424199471,1780648246000,-390.0,0.0001473,2]
[424199474,1780648246000,-10000.0,0.0001474,2]
[424199475,1780648246000,-150.0,0.00014743,2]
[424199479,1780648246000,-390.0,0.00014759,2]
[424199476,1780648246000,-203.55691112,0.00014744,2]
[424199472,1780648246000,-390.0,0.0001473,2]
[424199483,1780648246000,-186.18115721,0.00014767,2]
[424199477,1780648246000,-150.0,0.00014747,2]
[424199515,1780648246000,-10000.0,0.000149,2]
[424199480,1780648246000,-203.55691112,0.00014759,2]
[424199482,1780648246000,-426.32474976,0.00014767,2]
[424199478,1780648246000,-150.0,0.00014747,2]
[424199484,1780648246000,-203.55691112,0.00014774,2]
[424199485,1780648246000,-150.0,0.00014784,2]
[424199495,1780648246000,-203.55691112,0.0001482,2]
[424199486,1780648246000,-390.0,0.00014785,2]
[424199493,1780648246000,-150.0,0.00014806,2]
[424199488,1780648246000,-203.55691112,0.0001479,2]
[424199487,1780648246000,-150.0,0.00014786,2]
[424199491,1780648246000,-200.0,0.00014801,2]
[424199481,1780648246000,-390.0,0.00014764,2]
[424199519,1780648246000,-211.14205758,0.000149,2]
[424199531,1780648246000,-203.55691112,0.00014956,2]
[424199549,1780648246000,-545.89240974,0.0001499,2]
[424199550,1780648246000,-151.0,0.00014997,2]
[424199551,1780648246000,-500.0,0.00014999,2]
[424199547,1780648246000,-1000.0,0.0001499,2]
[424199548,1780648246000,-250.0,0.0001499,2]
[424199555,1780648246000,-500.0,0.00014999,2]
[424199552,1780648246000,-500.0,0.00014999,2]
[424199554,1780648246000,-500.0,0.00014999,2]
[424199553,1780648246000,-500.0,0.00014999,2]
[424199513,1780648246000,-33256.6326,0.000149,2]
[424199560,1780648246000,-386.82400011,0.00014999,2]
[424199567,1780648246000,-500.0,0.00014999,2]
[424199569,1780648246000,-500.0,0.00014999,2]
[424199563,1780648246000,-212.1318407,0.00014999,2]
[424199565,1780648246000,-500.0,0.00014999,2]
[424199573,1780648246000,-500.0,0.00014999,2]
[424199575,1780648246000,-500.0,0.00014999,2]
[424199578,1780648246000,-500.0,0.00014999,2]
[424199583,1780648246000,-437.35290326,0.00014999,2]
[424199580,1780648246000,-500.0,0.00014999,2]
[424199586,1780648246000,-227189.67451974,0.00015,2]
[424199544,1780648246000,-150.0,0.00014986,2]
[424199545,1780648246000,-332.0017238,0.00014987,2]
[424199556,1780648246000,-500.0,0.00014999,2]
[424199537,1780648246000,-150.0,0.00014986,2]
[424199546,1780648246000,-1000.0,0.0001499,2]
[424199530,1780648246000,-150.0,0.00014946,2]
[424199522,1780648246000,-203.55691112,0.00014911,2]
[424199524,1780648246000,-203.55691112,0.00014926,2]
[424199523,1780648246000,-184.44540211,0.00014911,2]
[424199520,1780648246000,-150.0,0.00014905,2]
[424199527,1780648246000,-746.07111647,0.00014929,2]
[424199521,1780648246000,-390.0,0.00014909,2]
[424199528,1780648246000,-390.0,0.0001493,2]
[424199526,1780648246000,-150.0,0.00014926,2]
[424199529,1780648246000,-203.55691112,0.00014941,2]
[424199525,1780648246000,-150.0,0.00014926,2]
[424199543,1780648246000,-150.0,0.00014986,2]
[424199532,1780648246000,-1439.0,0.00014959,2]
[424199535,1780648246000,-150.24681016,0.00014986,2]
[424199538,1780648246000,-150.32951387,0.00014986,2]
[424199534,1780648246000,-150.0,0.00014985,2]
[424199536,1780648246000,-150.0,0.00014986,2]
[424199539,1780648246000,-150.0,0.00014986,2]
[424199540,1780648246000,-150.0,0.00014986,2]
[424199541,1780648246000,-150.0,0.00014986,2]
[424199542,1780648246000,-203.55691112,0.00014986,2]
[424199533,1780648246000,-203.55691112,0.00014971,2]
[424199621,1780648247000,-500.0,0.00011174,2]